fUSD/lending_fUSD_20251220
["ID","MTS","AMOUNT","RATE_DAILY","PERIOD"]
[399276426,1766230238300,-500.0,0.00012383,2]
[399276428,1766230238309,-500.0,0.00012383,2]
[399276430,1766230238319,-500.0,0.00012383,2]
[399276432,1766230238328,-500.0,0.00012383,2]
[399276434,1766230238338,-500.0,0.00012383,2]
[399276436,1766230238347,-151.0,0.00012383,2]
[399276438,1766230238357,-151.0,0.00012383,2]
[399276440,1766230238367,-151.0,0.00012383,2]
[399276442,1766230238376,-151.0,0.00012383,2]
[399276444,1766230238386,-151.0,0.00012383,2]
[399276446,1766230238395,-151.0,0.00012383,2]
[399276448,1766230238404,-151.0,0.00012383,2]
[399276450,1766230238414,-151.0,0.00012383,2]
[399276452,1766230238423,-200.0,0.00012383,2]
[399276454,1766230238435,-151.0,0.00012383,2]
[399276456,1766230238445,-151.0,0.00012383,2]
[399276458,1766230238454,-500.0,0.00012383,2]
[399276460,1766230238463,-151.0,0.00012383,2]
[399276462,1766230238474,-500.0,0.00012383,2]
[399276464,1766230238483,-500.0,0.00012383,2]
[399276466,1766230238492,-500.0,0.00012383,2]
[399276468,1766230238501,-500.0,0.00012383,2]
[399276470,1766230238510,-500.0,0.00012383,2]
[399276472,1766230238520,-396.0615972,0.00012383,2]
[399276474,1766230238529,-200.0,0.00012383,2]
[399276475,1766230238538,-1410.45,0.00012383,2]
[399276477,1766230238548,-500.0,0.00012389,2]
[399276479,1766230238561,-1000.0,0.0001239,2]
[399276481,1766230238571,-280.2264,0.0001239,2]
[399276483,1766230238580,-25196.3449,0.0001239,2]
[399276485,1766230238590,-150.99,0.0001239,2]
[399276487,1766230238601,-9999.99,0.0001239,2]
[399276489,1766230238610,-9999.99,0.0001239,2]
[399276491,1766230238619,-9999.99,0.0001239,2]
[399276493,1766230238629,-1600.0,0.00012394,2]
[399276495,1766230238640,-500.0,0.00012489,2]
[399276497,1766230238650,-150.99,0.00012489,2]
[399276499,1766230238659,-3805.42,0.00012489,2]
[399276502,1766230238669,-766.47211188,0.00012504,2]
[399276504,1766230238679,-311.0,0.00012609,2]
[399276505,1766230238689,-1410.45,0.00012657,2]
[399276508,1766230238698,-2145.48,0.000127,2]
[399276509,1766230238707,-4524.82,0.000127,2]
[399276511,1766230238716,-4825.48,0.00012714,2]
[399276513,1766230238726,-15523.62,0.00012714,2]
[399276515,1766230238736,-1000.0,0.00012789,2]
[399276517,1766230238746,-2210.97,0.00012802,2]
[399276519,1766230238755,-500.0,0.00012931,2]
[399276521,1766230238764,-200.0,0.00012931,2]
[399276523,1766230238774,-200.0,0.00012931,2]
[399276525,1766230238783,-1410.45,0.00012931,2]
[399276527,1766230238792,-775.07178342,0.0001298,2]
[399276529,1766230238802,-60814.35216523,0.0001299,2]
[399276531,1766230238811,-166.07222089,0.00013057,2]
[399276533,1766230238820,-500.0,0.00013057,2]
[399276535,1766230238830,-500.0,0.00013057,2]
[399276537,1766230238839,-172.60476821,0.00013057,2]
[399276539,1766230238849,-165.53185787,0.00013057,2]
[399276541,1766230238858,-500.0,0.00013057,2]
[399276543,1766230238868,-176.6683039,0.00013057,2]
[399276545,1766230238879,-500.0,0.00013057,2]
[399276547,1766230238889,-224.04773923,0.00013057,2]
[399276549,1766230238899,-169.28855325,0.00013057,2]
[399276551,1766230238909,-500.0,0.00013057,2]
[399276553,1766230238919,-500.0,0.00013057,2]
[399276555,1766230238930,-163.72295793,0.00013057,2]
[399276557,1766230238940,-500.0,0.00013057,2]
[399276559,1766230238949,-160.176,0.00013057,2]
[399276561,1766230238958,-500.63598857,0.00013057,2]
[399276563,1766230238967,-500.0,0.00013057,2]
[399276565,1766230238977,-172.76817182,0.00013057,2]
[399276567,1766230238987,-500.0,0.00013057,2]
[399276569,1766230238997,-165.31243658,0.00013057,2]
[399276571,1766230239008,-500.0,0.00013057,2]
[399276573,1766230239018,-500.0,0.00013057,2]
[399276574,1766230239027,-165.7973653,0.00013057,2]
[399276575,1766230239036,-500.0,0.00013057,2]
[399276576,1766230239309,-515.85064943,0.00013057,2]
[399276577,1766230239318,-500.0,0.00013057,2]
[399276578,1766230239328,-500.0,0.00013057,2]
[399276579,1766230239336,-500.0,0.00013057,2]
[399276580,1766230239346,-500.15944449,0.00013057,2]
[399276581,1766230239355,-536.13646338,0.00013057,2]
[399276582,1766230239364,-500.0,0.00013057,2]
[399276583,1766230239373,-500.0,0.00013057,2]
[399276584,1766230239383,-500.0,0.00013057,2]
[399276585,1766230239392,-500.0,0.00013057,2]
[399276586,1766230239401,-500.0,0.00013057,2]
[399276587,1766230239411,-500.0,0.00013057,2]
[399276588,1766230239420,-500.0,0.00013057,2]
[399276589,1766230239430,-500.0,0.00013057,2]
[399276590,1766230239439,-500.0,0.00013057,2]
[399276591,1766230239449,-500.0,0.00013057,2]
[399276592,1766230239459,-162.0459649,0.00013057,2]
[399276593,1766230239468,-160.23016142,0.00013057,2]
[399276594,1766230239478,-500.0,0.00013057,2]
[399276595,1766230239488,-500.0,0.00013057,2]
[399276596,1766230239497,-315.42381846,0.00013057,2]
[399276597,1766230239507,-500.0,0.00013057,2]
[399276598,1766230239516,-500.0,0.00013057,2]
[399276599,1766230239526,-562.57939524,0.00013057,2]
[399276600,1766230239535,-168.59999571,0.00013057,2]
[399276601,1766230239545,-201.65516925,0.00013057,2]
[399276602,1766230239557,-216.27337885,0.00013057,2]
[399276603,1766230239568,-179.50290541,0.00013057,2]
[399276604,1766230239578,-166.66,0.00013081,2]
[399276605,1766230239588,-255.0,0.00013176,2]
[399276606,1766230239599,-1410.45,0.00013205,2]
[399276607,1766230239611,-300.0,0.00013232,2]
[399276608,1766230239620,-195.0,0.00013232,2]
[399276609,1766230239631,-193.0,0.00013232,2]
[399276610,1766230239640,-250.0,0.00013239,2]
[399276611,1766230239649,-500.0,0.00013255,2]
[399276612,1766230239659,-300.0,0.00013266,2]
[399276613,1766230239668,-500.0,0.00013479,2]
[399276614,1766230239678,-200.0,0.00013479,2]
[399276615,1766230239687,-200.0,0.00013479,2]
[399276616,1766230239697,-1410.45,0.00013479,2]
[399276617,1766230239720,-1000.0,0.000135,2]
[399276618,1766230239730,-166.66,0.00013513,2]
[399276619,1766230239740,-1000.84503146,0.00013605,2]
[399276620,1766230239750,-500.48342927,0.00013605,2]
[399276621,1766230239760,-1000.0,0.00013605,2]
[399276622,1766230239769,-1000.78461254,0.00013605,2]
[399276623,1766230239778,-500.50034776,0.00013605,2]
[399276624,1766230239787,-1000.0,0.00013605,2]
[399276625,1766230239797,-1000.0,0.00013605,2]
[399276626,1766230239807,-535.09556247,0.00013605,2]
[399276627,1766230239816,-1135.18911943,0.00013605,2]
[399276628,1766230239825,-1002.74001595,0.00013605,2]
[399276629,1766230239834,-1000.0,0.00013605,2]
[399276630,1766230239843,-1000.0,0.00013605,2]
[399276631,1766230239852,-1000.0,0.00013605,2]
[399276632,1766230239861,-572.75082077,0.00013605,2]
[399276633,1766230239871,-208.16009032,0.00013605,2]
[399276634,1766230239880,-1000.0,0.00013605,2]
[399276635,1766230239889,-1000.0,0.00013605,2]
[399276636,1766230239899,-500.31513524,0.00013605,2]
[399276637,1766230239908,-627.27365114,0.00013605,2]
[399276638,1766230239917,-1000.0,0.00013605,2]
[399276639,1766230239926,-453.43519306,0.00013605,2]
[399276640,1766230239936,-1000.0,0.00013605,2]
[399276641,1766230239945,-1000.0,0.00013605,2]
[399276642,1766230239954,-1002.93994495,0.00013605,2]
[399276643,1766230239963,-1000.0,0.00013605,2]
[399276644,1766230239972,-1000.0,0.00013605,2]
[399276645,1766230239981,-594.53896978,0.00013605,2]
[399276646,1766230239990,-1000.0,0.00013605,2]
[399276647,1766230239999,-483.93215772,0.00013605,2]
[399276648,1766230240008,-244.51516293,0.00013673,2]
[399276649,1766230240017,-500.0,0.00013698,2]
[399276650,1766230240027,-500.0,0.00013698,2]
[399276651,1766230240036,-500.0,0.00013698,2]
[399276653,1766230240045,-500.0,0.00013698,2]
[399276654,1766230240054,-500.0,0.00013698,2]
[399276655,1766230240063,-500.0,0.00013698,2]
[399276656,1766230240073,-500.0,0.00013698,2]
[399276657,1766230240082,-500.0,0.00013698,2]
[399276658,1766230240091,-500.0,0.00013698,2]
[399276659,1766230240101,-500.0,0.00013698,2]
[399276660,1766230240111,-500.0,0.00013698,2]
[399276661,1766230240120,-500.0,0.00013698,2]
[399276662,1766230240130,-500.0,0.00013698,2]
[399276663,1766230240139,-500.0,0.00013698,2]
[399276664,1766230240148,-500.0,0.00013698,2]
[399276665,1766230240157,-500.0,0.00013698,2]
[399276666,1766230240166,-500.0,0.00013698,2]
[399276667,1766230240175,-500.0,0.00013698,2]
[399276668,1766230240185,-500.0,0.00013698,2]
[399276669,1766230240194,-500.0,0.00013698,2]
[399276670,1766230240203,-500.0,0.00013698,2]
[399276671,1766230240212,-462.52746039,0.00013698,2]
[399276672,1766230240221,-500.0,0.00013698,2]
[399276673,1766230240231,-500.0,0.00013698,2]
[399276674,1766230240239,-500.0,0.00013698,2]
[399276675,1766230240249,-500.0,0.00013698,2]
[399276676,1766230240258,-500.0,0.00013698,2]
[399276677,1766230240267,-500.0,0.00013698,2]
[399276678,1766230240276,-500.0,0.00013698,2]
[399276679,1766230240285,-500.0,0.00013698,2]
[399276680,1766230240295,-500.0,0.00013698,2]
[399276681,1766230240305,-500.0,0.00013698,2]
[399276682,1766230240314,-500.0,0.00013698,2]
[399276683,1766230240323,-542.9137325,0.00013698,2]
[399276684,1766230240333,-500.0,0.00013698,2]
[399276685,1766230240342,-500.0,0.00013698,2]
[399276686,1766230240351,-500.0,0.00013698,2]
[399276687,1766230240361,-500.0,0.00013698,2]
[399276688,1766230240371,-500.0,0.00013698,2]
[399276689,1766230240380,-500.0,0.00013698,2]
[399276690,1766230240390,-500.0,0.00013698,2]
[399276691,1766230240399,-511.95166241,0.00013698,2]
[399276692,1766230240408,-500.0,0.00013698,2]
[399276693,1766230240417,-500.0,0.00013698,2]
[399276694,1766230240426,-500.0,0.00013698,2]
[399276695,1766230240436,-500.0,0.00013698,2]
[399276696,1766230240446,-500.0,0.00013698,2]
[399276697,1766230240455,-500.0,0.00013698,2]
[399276698,1766230240464,-500.0,0.00013698,2]
[399276699,1766230240474,-500.0,0.00013698,2]
[399276700,1766230240483,-500.0,0.00013698,2]
[399276701,1766230240493,-500.0,0.00013698,2]
[399276702,1766230240502,-500.0,0.00013698,2]
[399276703,1766230240511,-500.0,0.00013698,2]
[399276704,1766230240520,-500.0,0.00013698,2]
[399276705,1766230240530,-500.0,0.00013698,2]
[399276706,1766230240539,-500.0,0.00013698,2]
[399276707,1766230240549,-500.0,0.00013698,2]
[399276708,1766230240561,-500.0,0.00013698,2]
[399276709,1766230240571,-500.0,0.00013698,2]
[399276710,1766230240580,-500.0,0.00013698,2]
[399276711,1766230240590,-500.0,0.00013698,2]
[399276712,1766230240601,-500.0,0.00013698,2]
[399276713,1766230240610,-500.0,0.00013698,2]
[399276714,1766230240620,-500.0,0.00013698,2]
[399276715,1766230240630,-500.0,0.00013698,2]
[399276716,1766230240640,-500.0,0.00013698,2]
[399276717,1766230240649,-500.0,0.00013698,2]
[399276718,1766230240659,-500.0,0.00013698,2]
[399276719,1766230240668,-500.0,0.00013698,2]
[399276720,1766230240677,-500.0,0.00013698,2]
[399276721,1766230240686,-500.0,0.00013698,2]
[399276722,1766230240696,-500.0,0.00013698,2]
[399276723,1766230240705,-500.0,0.00013698,2]
[399276724,1766230240715,-500.0,0.00013698,2]
[399276725,1766230240724,-500.0,0.00013698,2]
[399276726,1766230240733,-500.0,0.00013698,2]
[399276727,1766230240743,-500.0,0.00013698,2]
[399276728,1766230240752,-500.0,0.00013698,2]
[399276729,1766230240761,-500.0,0.00013698,2]
[399276730,1766230240770,-500.0,0.00013698,2]
[399276731,1766230240779,-500.0,0.00013698,2]
[399276732,1766230240789,-500.0,0.00013698,2]
[399276733,1766230240799,-500.0,0.00013698,2]
[399276734,1766230240808,-500.0,0.00013698,2]
[399276735,1766230240817,-500.0,0.00013698,2]
[399276736,1766230240826,-500.0,0.00013698,2]
[399276737,1766230240836,-500.0,0.00013698,2]
[399276738,1766230240846,-500.0,0.00013698,2]
[399276739,1766230240856,-500.0,0.00013698,2]
[399276740,1766230240866,-500.0,0.00013698,2]
[399276741,1766230240876,-500.0,0.00013698,2]
[399276742,1766230240885,-500.0,0.00013698,2]
[399276743,1766230240895,-500.0,0.00013698,2]
[399276744,1766230240904,-500.0,0.00013698,2]
[399276745,1766230240914,-500.0,0.00013698,2]
[399276746,1766230240924,-500.0,0.00013698,2]
[399276747,1766230240933,-500.0,0.00013698,2]
[399276748,1766230240943,-500.0,0.00013698,2]
[399276749,1766230240953,-344.15406571,0.00013698,2]
[399276750,1766230240962,-500.0,0.00013698,2]
[399276751,1766230240971,-500.0,0.00013698,2]
[399276752,1766230240981,-500.0,0.00013698,2]
[399276753,1766230240990,-500.0,0.00013698,2]
[399276754,1766230240999,-500.0,0.00013698,2]
[399276755,1766230241010,-500.0,0.00013698,2]
[399276756,1766230241019,-500.0,0.00013698,2]
[399276757,1766230241029,-500.0,0.00013698,2]
[399276758,1766230241038,-500.0,0.00013698,2]
[399276759,1766230241048,-500.0,0.00013698,2]
[399276760,1766230241057,-500.0,0.00013698,2]
[399276761,1766230241067,-500.0,0.00013698,2]
[399276762,1766230241076,-500.0,0.00013698,2]
[399276763,1766230241086,-500.0,0.00013698,2]
[399276764,1766230241096,-559.80610806,0.00013698,2]
[399276765,1766230241105,-500.0,0.00013698,2]
[399276766,1766230241114,-500.0,0.00013698,2]
[399276767,1766230241124,-500.0,0.00013698,2]
[399276768,1766230241133,-500.0,0.00013698,2]
[399276769,1766230241142,-500.0,0.00013698,2]
[399276770,1766230241152,-500.0,0.00013698,2]
[399276771,1766230241161,-500.0,0.00013698,2]
[399276772,1766230241170,-500.0,0.00013698,2]
[399276773,1766230241179,-500.0,0.00013698,2]
[399276774,1766230241189,-500.0,0.00013698,2]
[399276775,1766230241199,-500.0,0.00013698,2]
[399276776,1766230241209,-13722.89,0.00013699,2]
[399276777,1766230241219,-166.66,0.00013699,2]
[399276778,1766230241228,-200.0,0.00013699,2]
[399276779,1766230241237,-500.0,0.00013699,2]
[399276780,1766230241248,-500.0,0.00013699,2]
[399276781,1766230241258,-500.0,0.00013699,2]
[399276782,1766230241267,-500.0,0.00013699,2]
[399276783,1766230241277,-500.0,0.00013699,2]
[399276784,1766230241286,-500.0,0.00013699,2]
[399276785,1766230241296,-500.0,0.00013699,2]
[399276786,1766230241305,-500.0,0.00013699,2]
[399276787,1766230241315,-500.0,0.00013699,2]
[399276788,1766230241326,-500.0,0.00013699,2]
[399276789,1766230241335,-500.0,0.00013699,2]
[399276790,1766230241344,-500.0,0.00013699,2]
[399276791,1766230241353,-500.0,0.00013699,2]
[399276792,1766230241362,-500.0,0.00013699,2]
[399276793,1766230241372,-500.0,0.00013699,2]
[399276794,1766230241382,-500.0,0.00013699,2]
[399276795,1766230241400,-500.0,0.00013699,2]
[399276796,1766230241412,-500.0,0.00013699,2]
[399276797,1766230241421,-500.0,0.00013699,2]
[399276798,1766230241431,-500.0,0.00013699,2]
[399276799,1766230241441,-500.0,0.00013699,2]
[399276800,1766230241450,-500.0,0.00013699,2]
[399276801,1766230241460,-420.01899428,0.00013699,2]
[399276802,1766230241469,-500.0,0.00013699,2]
[399276803,1766230241479,-500.0,0.00013699,2]
[399276804,1766230241488,-500.0,0.00013699,2]
[399276805,1766230241497,-500.0,0.00013699,2]
[399276806,1766230241507,-166.83486939,0.00013699,2]
[399276807,1766230241516,-500.0,0.00013699,2]
[399276808,1766230241525,-500.0,0.00013699,2]
[399276809,1766230241535,-500.0,0.00013699,2]
[399276810,1766230241545,-500.0,0.00013699,2]
[399276811,1766230241559,-500.0,0.00013699,2]
[399276812,1766230241568,-1410.45,0.00013753,2]
[399276813,1766230241578,-163.10613259,0.00013773,2]
[399276814,1766230241587,-235.41291364,0.00013773,2]
[399276815,1766230241599,-174.74495914,0.00013773,2]
[399276816,1766230241608,-232.85,0.00013811,2]
[399276817,1766230241618,-500.0,0.00013826,2]
[399276818,1766230241629,-166.66,0.00013836,2]
[399276819,1766230241638,-1600.0,0.00013943,2]
[399276820,1766230241648,-166.66,0.00013945,2]
[399276821,1766230241657,-166.66,0.00013973,2]
[399276822,1766230241666,-500.0,0.00014027,2]
[399276823,1766230241676,-200.0,0.00014027,2]
[399276824,1766230241686,-200.0,0.00014027,2]
[399276825,1766230241695,-1410.45,0.00014027,2]
[399276826,1766230241704,-500.0,0.00014093,2]
[399276827,1766230241714,-166.66,0.0001411,2]
[399276828,1766230241724,-1500.0,0.00014153,2]
[399276829,1766230241733,-1500.0,0.00014153,2]
[399276830,1766230241743,-1001.91769362,0.00014153,2]
[399276831,1766230241753,-1501.51415398,0.00014153,2]
[399276832,1766230241762,-1501.18432329,0.00014153,2]
[399276833,1766230241771,-1503.97714891,0.00014153,2]
[399276834,1766230241780,-1500.0,0.00014153,2]
[399276835,1766230241789,-1001.58945381,0.00014153,2]
[399276836,1766230241799,-1500.0,0.00014153,2]
[399276837,1766230241808,-502.20443143,0.00014153,2]
[399276838,1766230241818,-1211.67995912,0.00014153,2]
[399276839,1766230241827,-1500.0,0.00014153,2]
[399276840,1766230241836,-1500.0,0.00014153,2]
[399276841,1766230241846,-365.94030489,0.00014153,2]
[399276842,1766230241855,-151.0,0.00014229,2]
[399276843,1766230241865,-166.66,0.00014247,2]
[399276844,1766230241876,-151.0,0.00014301,2]
[399276845,1766230241886,-1410.45,0.00014301,2]
[399276846,1766230241895,-433.0,0.00014361,2]
[399276847,1766230241905,-166.66,0.00014377,2]
[399276848,1766230241915,-166.66,0.00014384,2]
[399276849,1766230241924,-500.0,0.0001456,2]
[399276850,1766230241933,-500.0,0.0001456,7]
[399276851,1766230241943,-500.0,0.00014575,2]
[399276852,1766230241952,-200.0,0.00014575,2]
[399276853,1766230241962,-200.0,0.00014575,2]
[399276854,1766230241971,-1410.45,0.00014575,2]
[399276855,1766230241980,-2000.0,0.00014701,2]
[399276856,1766230241989,-1188.04388907,0.00014701,2]
[399276857,1766230241999,-2002.17420355,0.00014701,2]
[399276858,1766230242008,-1503.12423045,0.00014701,2]
[399276859,1766230242018,-1393.70965969,0.00014701,2]
[399276860,1766230242027,-2000.0,0.00014701,2]
[399276861,1766230242036,-166.66,0.00014808,2]
[399276862,1766230242045,-1410.45,0.00014848,2]
[399276863,1766230242055,-500.0,0.00014849,2]
[399276864,1766230242064,-500.0,0.00014955,2]
[399276865,1766230242075,-1154.66111645,0.00015,2]
[399276866,1766230242086,-13727.26609607,0.00015,2]
[399276867,1766230242096,-900.0,0.00015068,2]
[399276868,1766230242106,-207.4,0.00015122,2]
[399276869,1766230242115,-1410.45,0.00015122,2]
[399276870,1766230242125,-500.0,0.00015123,2]
[399276871,1766230242134,-200.0,0.00015123,2]
[399276872,1766230242143,-200.0,0.00015123,2]
[399276873,1766230242153,-166.66,0.0001524,2]
[399276874,1766230242163,-2500.0,0.00015249,2]
[399276875,1766230242174,-2500.0,0.00015249,2]
[399276876,1766230242185,-158.48329942,0.00015288,2]
[399276877,1766230242194,-160.33063992,0.00015288,2]
[399276878,1766230242203,-155.64705311,0.00015288,2]
[399276879,1766230242213,-151.72084113,0.00015288,2]
[399276880,1766230242222,-156.76422926,0.00015288,2]
[399276881,1766230242232,-150.0,0.00015288,2]
[399276882,1766230242243,-157.75435091,0.00015288,2]
[399276883,1766230242252,-152.11986511,0.00015288,2]
[399276884,1766230242262,-150.82546103,0.00015288,2]
[399276885,1766230242273,-152.94375339,0.00015288,2]
[399276886,1766230242283,-151.68546767,0.00015288,2]
[399276887,1766230242292,-155.96693599,0.00015288,2]
[399276888,1766230242302,-152.70737667,0.00015288,2]
[399276889,1766230242316,-1410.45,0.00015396,2]
[399276890,1766230242325,-505.81490245,0.000154,2]
[399276891,1766230242335,-500.0,0.00015409,2]
[399276892,1766230242344,-500.0,0.00015409,2]
[399276893,1766230242353,-500.0,0.00015409,2]
[399276894,1766230242362,-500.0,0.00015409,2]
[399276895,1766230242372,-1600.0,0.00015492,2]
[399276896,1766230242381,-500.0,0.00015496,2]
[399276897,1766230242392,-500.0,0.00015593,2]
[399276898,1766230242402,-500.0,0.00015593,8]
[399276899,1766230242412,-1000.0,0.00015641,2]
[399276900,1766230242422,-1000.0,0.00015641,2]
[399276901,1766230242432,-1000.0,0.00015641,2]
[399276902,1766230242441,-1000.0,0.00015641,2]
[399276903,1766230242451,-1000.0,0.00015641,2]
[399276904,1766230242460,-1000.0,0.00015641,2]
[399276905,1766230242470,-1000.0,0.00015641,2]
[399276906,1766230242479,-794.454,0.00015647,2]
[399276907,1766230242489,-1410.45,0.0001567,2]
[399276908,1766230242500,-500.0,0.00015671,2]
[399276909,1766230242510,-200.0,0.00015671,2]
[399276910,1766230242520,-200.0,0.00015671,2]
[399276911,1766230242529,-151.0,0.00015726,2]
[399276912,1766230242538,-598.71268176,0.00015726,2]
[399276913,1766230242548,-5000.0,0.00015726,2]
[399276914,1766230242560,-9552.16786547,0.00015726,2]
[399276915,1766230242569,-500.0,0.00015726,2]
[399276916,1766230242579,-5000.0,0.00015726,2]
[399276917,1766230242587,-2000.0,0.00015726,2]
[399276918,1766230242599,-500.0,0.00015726,2]
[399276919,1766230242608,-5000.0,0.00015726,2]
[399276920,1766230242618,-2000.0,0.00015726,2]
[399276921,1766230242628,-542.92428573,0.00015726,2]
[399276922,1766230242638,-2000.0,0.00015726,2]
[399276923,1766230242647,-5000.0,0.00015726,2]
[399276924,1766230242656,-2000.0,0.00015726,2]
[399276925,1766230242665,-5000.0,0.00015726,2]
[399276926,1766230242674,-2000.0,0.00015726,2]
[399276927,1766230242684,-5000.0,0.00015726,2]
[399276928,1766230242693,-2000.0,0.00015726,2]
[399276929,1766230242702,-5000.0,0.00015726,2]
[399276930,1766230242712,-2000.0,0.00015726,2]
[399276931,1766230242721,-5000.0,0.00015726,2]
[399276932,1766230242730,-2000.0,0.00015726,2]
[399276933,1766230242740,-5000.0,0.00015726,2]
[399276934,1766230242751,-2000.0,0.00015726,2]
[399276935,1766230242760,-5000.0,0.00015726,2]
[399276936,1766230242770,-2000.0,0.00015726,2]
[399276937,1766230242780,-151.0,0.00015726,2]
[399276938,1766230242790,-5000.0,0.00015726,2]
[399276940,1766230242801,-2000.0,0.00015726,2]
[399276942,1766230242811,-5000.0,0.00015726,2]
[399276944,1766230242820,-1000.0,0.00015726,2]
[399276945,1766230242830,-5000.0,0.00015726,2]
[399276946,1766230242841,-5000.0,0.00015726,2]
[399276947,1766230242850,-1000.0,0.00015726,2]
[399276948,1766230242859,-5000.0,0.00015726,2]
[399276949,1766230242869,-151.0,0.00015726,2]
[399276950,1766230242878,-1000.0,0.00015726,2]
[399276951,1766230242888,-473.26018264,0.00015726,2]
[399276952,1766230242898,-500.0,0.00015726,2]
[399276953,1766230242907,-1000.0,0.00015726,2]
[399276954,1766230242916,-500.0,0.00015726,2]
[399276955,1766230242925,-500.0,0.00015726,2]
[399276956,1766230242935,-1000.0,0.00015726,2]
[399276957,1766230242944,-500.0,0.00015726,2]
[399276958,1766230242953,-500.0,0.00015726,2]
[399276959,1766230242963,-1000.0,0.00015726,2]
[399276960,1766230242972,-500.0,0.00015726,2]
[399276961,1766230242982,-500.0,0.00015726,2]
[399276962,1766230242991,-1000.0,0.00015726,2]
[399276963,1766230243000,-574.12855637,0.00015726,2]
[399276964,1766230243010,-500.0,0.00015726,2]
[399276966,1766230243019,-500.0,0.00015726,2]
[399276967,1766230243028,-500.0,0.00015726,2]
[399276968,1766230243037,-500.0,0.00015726,2]
[399276969,1766230243046,-1000.0,0.00015726,2]
[399276970,1766230243056,-500.0,0.00015726,2]
[399276971,1766230243065,-500.0,0.00015726,2]
[399276972,1766230243079,-1000.0,0.00015726,2]
[399276973,1766230243089,-500.0,0.00015726,2]
[399276974,1766230243099,-500.0,0.00015726,2]
[399276975,1766230243108,-1000.0,0.00015726,2]
[399276976,1766230243119,-250.0,0.00015726,2]
[399276977,1766230243128,-500.0,0.00015726,2]
[399276978,1766230243138,-500.0,0.00015726,2]
[399276979,1766230243149,-1000.0,0.00015726,2]
[399276980,1766230243159,-250.0,0.00015726,2]
[399276981,1766230243169,-500.0,0.00015726,2]
[399276982,1766230243179,-500.0,0.00015726,2]
[399276983,1766230243189,-250.0,0.00015726,2]
[399276984,1766230243205,-500.0,0.00015726,2]
[399276985,1766230243222,-1000.0,0.00015726,2]
[399276986,1766230243234,-500.0,0.00015726,2]
[399276987,1766230243243,-500.0,0.00015726,2]
[399276988,1766230243253,-250.0,0.00015726,2]
[399276989,1766230243262,-264.16834581,0.00015726,2]
[399276990,1766230243275,-300.0,0.00015726,2]
[399276991,1766230243286,-1000.0,0.00015726,2]
[399276992,1766230243297,-1000.0,0.00015726,2]
[399276993,1766230243313,-1000.0,0.00015726,2]
[399276994,1766230243323,-1000.0,0.00015726,2]
[399276995,1766230243332,-1000.0,0.00015726,2]
[399276996,1766230243342,-1000.0,0.00015726,2]
[399276997,1766230243353,-151.49542101,0.00015726,2]
[399276998,1766230243363,-1000.0,0.00015726,2]
[399276999,1766230243373,-1000.0,0.00015726,2]
[399277000,1766230243622,-1000.0,0.00015726,2]
[399277001,1766230243632,-1000.0,0.00015726,2]
[399277002,1766230243642,-1000.0,0.00015726,2]
[399277003,1766230243651,-1000.0,0.00015726,2]